Cogmind - Beta 16 @@@ ROGUE MODE // 2026.01.01 @ 22:08:18 Player: artema Result: Destroyed by Y-45 Defender with Beam Rifle Performance ------------- Evolutions (2) 1000 Regions Visited (4) 800 Robots Destroyed (22) 110 Value Destroyed (720) 720 Prototype IDs (0) 0 Alien Tech Used (0) 0 Bonus (0) 0 TOTAL SCORE: 2630 Bonus ------- None Cogmind --------- Core Integrity 0/550 Matter 285/300 Energy 96/100 System Corruption 0% Temperature Cool (11) Movement Walking (130) Location -8/Materials Parts ------- > --- POWER (1) -------- (None) > --- PROPULSION (4) --- Titanium Leg > --- UTILITY (3) ------ Visual Processing Unit > --- WEAPON (3) ------- (None) > --- INVENTORY (5) ---- Titanium Leg Large Storage Unit ECM Suite High-powered Tractor Beam Datajack Peak State ------------ > --- POWER ------------ Nuclear Core > --- PROPULSION ------- Aluminum Leg Aluminum Leg Carbon-fiber Leg > --- UTILITY ---------- Small Storage Unit Visual Processing Unit Utility Shielding > --- WEAPON ----------- Pulse Rifle Pulse Rifle Minigun > --- INVENTORY -------- Titanium Leg Medium Storage Unit Large Storage Unit ECM Suite High-powered Tractor Beam Datajack [Rating: 22] Favorites ----------- Power Ion Engine Engine Ion Engine Power Core Nuclear Core Propulsion Aluminum Leg Leg Aluminum Leg Utility Small Storage Unit Device Trap Scanner Storage Small Storage Unit Processor Visual Processing Unit Protection Utility Shielding Weapon Medium Laser Energy Gun Medium Laser Ballistic Gun Light Assault Rifle Special Melee Weapon Datajack Build | -11 -10 -9 -9 -8 ------- Run | Yrd Mat Mat Min Mat Slots Evolved 4 | . . 2 . 2 Power . | . . . . . Propulsion 2 | . . 2 . . Utility 1 | . . . . 1 Weapon 1 | . . . . 1 Parts Attached 32 | 7 2 5 2 16 Power 4 | 1 . 1 1 1 Engine 3 | 1 . 1 1 . Core 1 | . . . . 1 Reactor . | . . . . . Propulsion 9 | 2 . 2 1 4 Treads . | . . . . . Leg 9 | 2 . 2 1 4 Wheel . | . . . . . Hover . | . . . . . Flight . | . . . . . Utility 8 | 2 2 . . 4 Device 2 | . . . . 2 Storage 2 | 2 . . . . Processor 2 | . 1 . . 1 Hackware . | . . . . . Protection 2 | . 1 . . 1 Artifact . | . . . . . Weapon 11 | 2 . 2 . 7 Energy Gun 8 | 2 . 1 . 5 Energy Cannon . | . . . . . Ballistic Gun 2 | . . 1 . 1 Ballistic Cannon . | . . . . . Launcher . | . . . . . Special Weapon . | . . . . . Impact Weapon . | . . . . . Slashing Weapon . | . . . . . Piercing Weapon . | . . . . . Special Melee Weapon 1 | . . . . 1 Unidentified Prototypes . | . . . . . Parts Lost 22 | . . 2 1 19 Power 3 | . . . 1 2 Propulsion 8 | . . 1 . 7 Utility 3 | . . . . 3 Weapon 8 | . . 1 . 7 Highest Loss Streak 7 | . . 2 1 7 To Critical Strikes . | . . . . . Average Backups 6 | 1 3 7 7 6 Power . | . 1 1 . . Propulsion . | . . . . . Utility 4 | . 1 5 5 5 Weapon . | . 1 . 1 . Tool/Special . | . . . . . Unused Backups 7 | . . . 1 6 Power . | . . . . . Propulsion 2 | . . . . 2 Utility 5 | . . . 1 4 Weapon . | . . . . . Tool/Special . | . . . . . Average Slot Usage (%) 76 | . 100 79 91 59 Engine 6 | . 14 8 9 1 Leg 25 | . 28 27 38 16 Device 2 | . . . . 6 Storage 11 | . 22 11 11 8 Processor 1 | . 3 . . 2 Protection 6 | . 2 11 11 4 Energy Gun 18 | . 28 19 22 13 Ballistic Gun 1 | . . 1 . 2 Special Melee Weapon 1 | . . . . 3 Peak Build Rating 22 | 7 7 10 10 22 Average Rating 10 | 4 7 8 9 12 On Entrance 6 | . 7 7 10 10 Avg Prop Armor Cover (%) 9 | . . . 11 8 Naked Turns . | . . . . . Heaviest Build 22 | 19 19 15 14 22 Greatest Support 35 | 20 20 33 33 35 Greatest Overweight (x) 6 | . . . . 6 Average Overweight (x) . | . . . . . Largest Inventory Capacity 8 | 8 8 8 8 8 Average Capacity 7 | 6 8 8 8 7 Most Carried 8 | 3 7 8 8 8 Average Carried 6 | 2 3 7 6 6 Final Capacity 8 | 8 8 8 8 5 Final Carried 8 | 2 7 8 6 5 Class Distribution -------------------- 67% | Mutant 23% | Scavenger-Mutant 8% | Scavenger-Tank Dominant Class ---------------- Mutant | -10/Materials Mutant | -9/Materials Scavenger-Mutant | -9/Mines Mutant | -8/Materials Resources | -11 -10 -9 -9 -8 ----------- Run | Yrd Mat Mat Min Mat Matter Collected 516 | 195 12 140 15 154 Remotely . | . . . . . Salvage Created 1034 | 92 12 215 198 517 Parts 41 | 2 3 8 4 24 Haulers Intercepted . | . . . . . Recyclers Shooed 2 | . . . 1 1 Parts Field Recycled . | . . . . . Retrieved Matter . | . . . . . Parts Self-Destructed . | . . . . . Prevented . | . . . . . Parts Restored . | . . . . . Kills | -11 -10 -9 -9 -8 ------- Run | Yrd Mat Mat Min Mat Combat Hostiles Destroyed 16 | . . 5 4 7 Guns 16 | . . 5 4 7 Classes Destroyed 8 | 1 1 2 1 3 Recycler 3 | 1 . . . 2 Operator 1 | . . . . 1 Watcher 2 | . 1 1 . . Grunt 9 | . . 4 3 2 Brawler 2 | . . . 1 1 Duelist 1 | . . 1 . . Sentry 3 | . . . . 3 Hunter 1 | . . . . 1 Best Kill Streak 3 | 1 1 3 2 2 Combat Bots Only 3 | . . 3 2 2 Max Kills in Single Turn 1 | 1 1 1 1 1 Gunslinging . | . . . . . Exploded . | . . . . . Melee . | . . . . . Uniques/NPCs Destroyed . | . . . . . Combat | -11 -10 -9 -9 -8 -------- Run | Yrd Mat Mat Min Mat Hostile Shots Fired 245 | . . 44 24 177 Missed 51 | . . 6 7 38 Hits 194 | . . 38 17 139 Melee 4 | . . 4 . . Projectile 190 | . . 34 17 139 Critical Strikes 7 | . . 1 2 4 Damage Taken 2758 | . . 491 210 2057 Core 709 | . . 110 40 559 Absorbed by Shields . | . . . . . Redirected to Shielding 51 | . . 18 . 33 Core Remaining (%) 87 | 100 100 . 62 . Volleys Fired 97 | 2 2 29 19 45 Largest 3 | 2 2 2 2 3 Hottest 151 | 90 90 90 90 151 Shots Fired 179 | 4 4 45 38 88 Gun 179 | 4 4 45 38 88 Cannon . | . . . . . Launcher . | . . . . . Special . | . . . . . Kinetic 19 | . . . . 19 Thermal 142 | 2 2 43 38 57 Explosive . | . . . . . Electromagnetic 18 | 2 2 2 . 12 Robot Hit Streak 14 | 2 2 8 7 14 Robot Miss Streak 3 | 1 1 2 3 3 Penetration Max . | . . . . . Secondary Targets 1 | . . . 1 . Max Gunslinging Chain 1 | . . . 1 . Shots Hit Robots 134 | 2 2 35 25 70 Core Hits 49 | 1 1 15 10 22 Critical Kills . | . . . . . Critical Parts Destroyed . | . . . . . Critical Strikes 3 | . . 1 . 2 Burn 2 | . . 1 . 1 Corrupt 1 | . . . . 1 Melee Attacks 6 | . . . . 6 Impact . | . . . . . Slashing . | . . . . . Piercing . | . . . . . Sneak Attacks 4 | . . . . 4 Combat Hostiles . | . . . . . Follow-up Attacks . | . . . . . Damage Inflicted 1693 | 27 43 417 297 909 Guns 1675 | 27 36 417 286 909 Cannons . | . . . . . Explosions . | . . . . . Melee . | . . . . . Ramming 18 | . 7 . 11 . Kinetic 131 | . . . . 131 Thermal 1347 | 12 12 394 286 643 Explosive . | . . . . . Electromagnetic 197 | 15 24 23 . 135 Impact . | . . . . . Slashing . | . . . . . Piercing . | . . . . . Highest Corruption . | . . . . . Average Corruption . | . . . . . Corruption Purged . | . . . . . Corruption Blocked . | . . . . . Overload Shots . | . . . . . Overflow Damage . | . . . . . Projectiles . | . . . . . Explosions . | . . . . . Melee . | . . . . . Knockbacks 1 | . 1 . . . Impact 1 | . 1 . . . Kinetic . | . . . . . Secondary . | . . . . . Self-Inflicted Damage . | . . . . . Shots . | . . . . . Rammed . | . . . . . Targets Rammed 6 | . 1 . 5 . Kicked 6 | . 1 . 5 . Crushed . | . . . . . Highest Temperature 513 | 60 60 139 288 513 Average Temperature 115 | 31 31 43 143 149 Received Heat Transfer 1257 | . . 204 153 900 Effects 6 | . . . 2 4 Shutdowns 2 | . . . . 2 Interference 3 | . . . 2 1 Short Circuit 1 | . . . . 1 Siege Activations . | . . . . . Martial Activations . | . . . . . Shielding Activations . | . . . . . Robots Disrupted . | . . . . . Combat Hostiles . | . . . . . Robots Corrupted . | . . . . . Combat Hostiles . | . . . . . Parts Fried . | . . . . . Impact Corruptions . | . . . . . Robots Melted . | . . . . . Combat Hostiles . | . . . . . Parts Melted 8 | . . 3 1 4 Heat Transferred 3610 | 37 37 1175 769 1592 Parts Sabotaged . | . . . . . Parts Stolen . | . . . . . Parts Stripped . | . . . . . Power Chain Reactions . | . . . . . Alert | -11 -10 -9 -9 -8 ------- Run | Yrd Mat Mat Min Mat Maximum Alert Level . | . . . . . Low Security (%) 100 | 100 100 100 100 100 Level 1 . | . . . . . Level 2 . | . . . . . Level 3 . | . . . . . Level 4 . | . . . . . Level 5 . | . . . . . High Security . | . . . . . Max Security . | . . . . . Peak Influence 52 | 5 7 50 50 52 Initial 7 | . . . 7 . Average 9 | . . 16 13 9 Influence Increases 511 | 5 7 131 100 268 Destroy 0b10 Robot/C 320 | . . 100 80 140 Destroy 0b10 Robot/NC 30 | 5 5 5 . 15 Destroy Leader 94 | . 2 22 20 50 Successful Hack 6 | . . 4 . 2 Destroy Structure 1 | . . . . 1 Lose Combat Pursuer 60 | . . . . 60 Influence Decreases 471 | 5 7 111 120 228 Entered New Map 13 | . . . 13 . Time Decay 365 | 5 7 101 97 155 Lost Part 93 | . . 10 10 73 Squads Dispatched 1 | . . 1 . . Investigation . | . . . . . Extermination . | . . . . . Reinforcement 1 | . . 1 . . Assault . | . . . . . Garrison . | . . . . . Intercept . | . . . . . Searches Triggered . | . . . . . Construction Impeded . | . . . . . Haulers Reinforced . | . . . . . Active Scanning Responses . | . . . . . Cargo Convoy Interrupts . | . . . . . Stealth | -11 -10 -9 -9 -8 --------- Run | Yrd Mat Mat Min Mat Distress Signals 4 | . . 1 . 3 Communications Jammed . | . . . . . Distress Signals . | . . . . . Times Spotted 33 | . 1 10 5 17 Peak Tracking Total 7 | . 1 3 3 7 Tactical Retreats 2 | . . . . 2 Traps | -11 -10 -9 -9 -8 ------- Run | Yrd Mat Mat Min Mat Traps Triggered . | . . . . . Indirectly . | . . . . . Trap Hack Attempts 1 | . . . . 1 Triggered . | . . . . . Disarmed . | . . . . . Reprogrammed 1 | . . . . 1 Reused . | . . . . . Traps Extracted . | . . . . . Installed . | . . . . . Triggered . | . . . . . Machines | -11 -10 -9 -9 -8 ---------- Run | Yrd Mat Mat Min Mat Machines Disabled . | . . . . . Max in Single Turn . | . . . . . Machines Repaired . | . . . . . Machines Dismantled . | . . . . . Machines Sabotaged . | . . . . . Overloaded Fab Kills . | . . . . . Hacking | -11 -10 -9 -9 -8 --------- Run | Yrd Mat Mat Min Mat Machines Accessed 4 | . 1 2 . 1 Terminals 3 | . . 2 . 1 Fabricators . | . . . . . Repair Stations . | . . . . . Recycling Units 1 | . 1 . . . Scanalyzers . | . . . . . Garrison Access . | . . . . . Total Hacks 11 | . 2 6 . 3 Successful 7 | . 1 4 . 2 Failed 4 | . 1 2 . 1 Catastrophic 1 | . 1 . . . Database Lockouts . | . . . . . Manual 2 | . . . . 2 Terminals 9 | . . 6 . 3 Fabricators . | . . . . . Repair Stations . | . . . . . Recycling Units 2 | . 2 . . . Scanalyzers . | . . . . . Garrison Access . | . . . . . Terminal Hacks 6 | . . 4 . 2 Record 4 | . . 2 . 2 Robot Analysis 1 | . . 1 . . Alert Level 1 | . . 1 . . Fabricator Hacks . | . . . . . Repair Station Hacks . | . . . . . Recycling Unit Hacks 1 | . 1 . . . Report Inventory 1 | . 1 . . . Scanalyzer . | . . . . . Garrison Access Hacks . | . . . . . Unauthorized Hacks . | . . . . . Terminals . | . . . . . Fabricators . | . . . . . Repair Stations . | . . . . . Recycling Units . | . . . . . Scanalyzers . | . . . . . Garrison Access . | . . . . . Data Cores Recovered 1 | . . . . 1 Used . | . . . . . Hacking Detections 3 | . 1 1 . 1 Full Trace Events 1 | . . . . 1 Feedback Events . | . . . . . Feedback Blocked . | . . . . . Robot Schematics Acquired . | . . . . . Robots Built . | . . . . . Authchips . | . . . . . Time . | . . . . . Total Robot Build Rating . | . . . . . Part Schematics Acquired . | . . . . . Parts Built . | . . . . . Authchips . | . . . . . Time . | . . . . . Total Part Build Rating . | . . . . . Part Studies Acquired . | . . . . . Parts Repaired . | . . . . . Time . | . . . . . Parts Recycled . | . . . . . Recycled Matter . | . . . . . Retrieved Matter . | . . . . . Retrieved Components . | . . . . . Parts Scanalyzed . | . . . . . Part Schematics Acquired . | . . . . . Parts Damaged . | . . . . . Bothacking | -11 -10 -9 -9 -8 ------------ Run | Yrd Mat Mat Min Mat Used RIF Installer . | . . . . . Robots Hacked 3 | . . . . 3 Non-combat 2 | . . . . 2 Combat 1 | . . . . 1 Robot Hacks Applied 5 | . . . . 5 parse_system 3 | . . . . 3 no_distress 1 | . . . . 1 find_recycling 1 | . . . . 1 Relay Couplers Released . | . . . . . Fabnet Peak Effective % . | . . . . . Robots Rewired . | . . . . . Allies Hacked . | . . . . . Hacks Repelled . | . . . . . Allies | -11 -10 -9 -9 -8 -------- Run | Yrd Mat Mat Min Mat Total Allies . | . . . . . Largest Group . | . . . . . Highest-Rated Group . | . . . . . Highest-Rated Ally . | . . . . . Total Orders . | . . . . . Ally Attacks . | . . . . . Total Damage . | . . . . . Kills . | . . . . . Allies Corrupted . | . . . . . Allies Melted . | . . . . . Intel | -11 -10 -9 -9 -8 ------- Run | Yrd Mat Mat Min Mat Active Infowar (turns) 642 | . . . . 642 Optics 63 | . . . . 63 Traps 564 | . . . . 564 ECM 15 | . . . . 15 Robot Analysis Total 1 | . . 1 . . Derelict Logs Recovered 2 | . . . 2 . Drone Launches . | . . . . . Drone Recoveries . | . . . . . Exploration | -11 -10 -9 -9 -8 ------------- Run | Yrd Mat Mat Min Mat Turns Passed 1881 | 87 252 305 415 822 Spaces Moved 1270 | 55 196 183 289 547 Core 147 | 6 . . . 141 Treads . | . . . . . Legs 1123 | 49 196 183 289 406 Wheels . | . . . . . Hover . | . . . . . Flight . | . . . . . Fastest Speed 50 | 50 120 120 120 50 Average Speed 117 | 112 120 120 120 115 Slowest Speed 350 | 120 120 120 120 350 Overloaded Moves . | . . . . . Propulsion Burnouts . | . . . . . Robots Hopped . | . . . . . Potential Cave-ins . | . . . . . Cave-ins Triggered . | . . . . . Exploration Rate (%) 23 | 4 31 19 33 28 Regions Visited 4 Branch Regions 1 Pre-discovered Areas . | . . . . . Known Exits Taken . | . . . . . Unknown Exits Taken 4 | 1 1 1 1 . Scrap Searched 1 | . . . 1 . Spaces Dug . | . . . . . Terrain Destroyed . | . . . . . Melee . | . . . . . Projectile . | . . . . . AOE . | . . . . . Terrain Rammed . | . . . . . Walls Destroyed . | . . . . . Machines Disabled . | . . . . . Actions | -11 -10 -9 -9 -8 --------- Run | Yrd Mat Mat Min Mat Total 1482 | 74 209 223 318 658 Wait 16 | . . . . 16 Move 1266 | 54 195 182 288 547 Hop . | . . . . . Pick Up 25 | 3 6 4 . 12 Fast Attach 22 | 8 . 4 2 8 Attach 15 | 2 2 1 1 9 Detach 8 | 3 2 . 1 2 Swap 5 | . . . . 5 Drop 14 | 2 . 3 2 7 Fire 97 | 2 2 29 19 45 Melee 6 | . . . . 6 Ram . | . . . . . Kick 6 | . 1 . 5 . Crush . | . . . . . Escape Stasis . | . . . . . Rewire 1 | . 1 . . . Trap 1 | . . . . 1 Miscellaneous . | . . . . . Route ------- -11/Scrapyard -10/Materials -9/Materials -9/Mines -8/Materials History --------- Turn | Location | Event 11 | -11/Scrapyard | Discovered new exit (range 16) 88 | -11/Scrapyard | Entered Materials 304 | -10/Materials | Build established: Mutant 309 | -10/Materials | Discovered new exit (range 14) 340 | -10/Materials | Entered another Materials area 340 | -9/Materials | Evolved 2 slots: Propulsion x2 629 | -9/Materials | Discovered new exit (range 7) 645 | -9/Materials | Entered Mines 736 | -9/Mines | Discovered new exit (range 7) 758 | -9/Mines | Met a Derelict bent on vengeance 942 | -9/Mines | Learned Materials terminal intel 1060 | -9/Mines | Entered Materials 1060 | -8/Materials | Evolved 2 slots: Utility x1, Weapon x1 1061 | -8/Materials | Loaded intel: 11 terminal locations 1243 | -8/Materials | Lost 7 parts (1p4n2w) 1794 | -8/Materials | Lost 6 parts (1p3n2w) 1799 | -8/Materials | Core integrity fell below 50% 1835 | -8/Materials | Lost 3 parts (2u1w) 1840 | -8/Materials | Core integrity fell below 20% 1882 | -8/Materials | Destroyed by Y-45 Defender with Beam Rifle Last Messages --------------- disabled. 01757_ K-01 Serf collects debris. 01757_ Nuclear Core destroyed. 01758_ Minigun broken. 01758_ Overheating: Short circuit. 01760_ K-01 Serf collects debris. 01761_ Critical hit (Burn: +37). 01762_ K-01 Serf collects debris. 01763_ Pulse Rifle destroyed. 01763_ Critical hit (Burn: +37). 01764_ K-01 Serf collects debris. 01765_ R-06 Scavenger collects Hammer. 01769_ R-06 Scavenger collects Lgt. Treads. 01771_ T-07 Excavator destroyed. 01795_ Atomic Centrifuge disabled. 01797_ Broken Minigun destroyed. 01799_ Utility Shielding destroyed. 01804_ Sml. Storage Unit destroyed. 01845_ Critical hit (Burn: +37). 01854_ Acquired Titanium Leg. Map ----- +----------------------------------------------------+ | | | | | | | | | | | | | | | | | | | ?????????????????????????????????????????????????? | | ?????????????????????????????????????????????????? | | ?????????????????????????????????????????????????? | | ?????????????????????????????????????????????????? | | ?????????????????????????????????????????????????? | | ?????????????????????????????????????????????????? | | ?????????????????????????????????????????????????? | | ???????????????"?????????????????????????????????# | | ???????????????T?????????????????????????????????# | | ???????????????"???????????###########???????????# | | ???????????????????????????# ! #######?????# | | ???????????????????????????# # ####### | | ???????????????????????????# """ # | | ???????????????????????????#! "" / | | ???????????????????????????#= """ # | | ??????????????????########## "T" # ###+### | | ??????????????????# Y @ # """ ## ##?????# | | ??????????????????# g""" # ## #??????# | | ??????????????????# g""" ############ #??????# | | ??????????????????#g """ #??????????+ #??????# | | ??????????????????# #??????????# #??????# | | ??????????????????# """ !#??????????#% #??????# | | ??????????????????# """ #??????????# #??????# | | ??????????????????# """ !#??????????# #??????# | | ??????????????????# g #??????????# #??????# | | ??????????????????####+#####??????????# % #??????# | | ?????????#?????????# ############## ######## | | ?????????# ##### | | ?????????# | | ?????????# ##### | | ???????????????????# ###############/######### | | ???????????????????## ##??????????# #???? | | ????????????????????# #???????????# = "#???? | | ????????????????????# #???????????# == "#???? | | ????????????????????+ #???????????# == "#???? | | ????????????????????# #????????#### T#???? | | ????????????????????# ???? / """ "##### | | ????????????????????# ##???######## """ "## | | ????????????????????##+##???????????# """ "## | | ????????????????????????????????????# ## ^ | | ????????????????????????????????????#######+### " | +----------------------------------------------------+ Best States ------------- Heat Dissipation 31 Energy Generation 14 Energy Capacity 250 Matter Stores 300 Matter Capacity 300 Sight Range 18 Terrain Scan Density 10 ECM Strength 1 Armor Coverage 150 Utility Shielding 33 Evasion (%) 55 Item Schematics ----------------- None Robot Schematics ------------------ None Fabricated ------------ Nothing Repaired ---------- Nothing Studied --------- None Alien Tech Used ----------------- None Achievements -------------- Hehehe Junior Dev Well Done Challenges ------------ None Game ------ Seed PitchforkJunkInitializer Manual? 0 Play Time 01:09:34 Cumulative 2.2 hours Start 2026.01.01 @ 19:46:18 End 2026.01.01 @ 22:08:18 Sessions 1 Manual Loads 0 Difficulty Rogue Special Mode None Game No. 4 Rogue 4 Adventurer 0 Explorer 0 Win Type - Total 0 Types 0/0/0/0/0/0/0/0/0/0 Lore% 0 Gallery% 3 Achievement% 4 Wizard Run 0 Options --------- Layout 1 ASCII 0 Keyboard 1 Movement Arrows Keybinds 0 Fullscreen 2 Font 48/Terminus Map View 50x35 Zoom Use 0% Tactical HUD 1 Map Filters NONE Filters NONE Steam 1 RUN: 996b39bf-3c1d-43c8-b8df-f88fbb24e2ee